[Event "Czech Open-Rapid 2022"]
[Site "Pardubice"]
[Date "2022.07.20"]
[Round "1.20"]
[White "Strebkovs, Andrejs"]
[Black "Alieksieienko, Mykhail"]
[Result "1-0"]
[ECO "A46"]
[WhiteElo "2283"]
[BlackElo "1610"]
[Annotator "TA"]
[PlyCount "155"]
[EventDate "2022.07.20"]
[EventType "swiss"]
[EventCountry "CZE"]
[SourceTitle "playchess.com"]
[Source "ChessBase"]
[SourceQuality "1"]
[TimeControl "1200+10"]

{[%evp 9,154,17,16,10,11,0,10,0,0,0,0,0,0,-37,0,-9,9,14,46,0,0,0,34,0,0,-1,0,-5,31,16,16,17,12,15,34,15,18,13,12,15,130,140,140,135,131,91,88,0,85,57,98,76,128,52,67,0,92,96,101,87,86,72,110,92,103,31,83,82,82,29,32,0,0,0,0,0,0,0,0,0,0,0,0,0,0,0,0,0,0,0,0,0,641,526,29985,29986,29991,29992,29992,29993,29994,29995,29995,29976,29976,29969,29982,29973,29968,29974,29969,22,29995,29983,29988,29989,29989,29989,29983,29984,29984,29985,29985,29986,29986,29985,29985,29986,29993,29994,29995,29996,29996,29994,29994,29995,29995,29995,29997,29995,29996,29997,29997,29997,29998,29999,29999]} 1. d4 {[%emt 0:00:04]} Nf6 {[%emt 0:00:01]} 2. Nf3 {[%emt 0:00:06]} d5 {[%emt 0:00:01]} 3. c3 {[%emt 0:00:24]} c6 {[%emt 0:00:08]} 4. Bg5 {[%emt 0:00:40]} Ne4 {[%emt 0:00:05]} 5. Bf4 {[%emt 0:00:13]} Bf5 {[%emt 0:00:42]} 6. Nbd2 {[%emt 0:00:43] D03: 1 d4 d5 2 Nf3 Nf6 3 Bg5, including Torre Attack with early ...d5.} Nd7 {[%emt 0:00:20][%cal Og7g5] was the old line (6...e6).} 7. e3 {[%emt 0:01:00]} e6 {[%emt 0:00:15]} 8. Qb3 {[%emt 0:00:18] The position is equal.} Qb6 {[%emt 0:00:13]} 9. Nxe4 {[%emt 0:00:47]} Bxe4 {[%emt 0:00:07]} 10. Be2 {[%emt 0:00:26]} Be7 {[%emt 0:00:17]} 11. Nd2 {[%emt 0:01:48]} Bg6 {[%emt 0:01:06] [#]} ({Don't play} 11... Bxg2 12. Rg1 Bh3 13. Rxg7 $11) 12. f3 $146 {[%emt 0:01:25]} ({Predecessor:} 12. O-O O-O 13. Rfc1 c5 14. Bf3 Rac8 15. h3 Qa6 16. Qd1 Rfd8 17. Nb3 b6 18. Be2 {0-1 (42) Michos,T (2264)-Mastrovasilis,D (2562) Athens 2006}) 12... Qxb3 {[%emt 0:00:57]} 13. axb3 {[%emt 0:00:11]} O-O {[%emt 0:00:30]} 14. O-O {[%emt 0:01:53]} (14. b4 $14) 14... c5 $11 {[%emt 0:01:24]} 15. Bb5 {[%emt 0:00:52]} Nf6 {[%emt 0:00:09]} 16. g4 {[%emt 0:00:41]} a6 {[%emt 0:00:21]} 17. Be2 {[%emt 0:00:10]} Nd7 {[%emt 0:01:23]} 18. Bg3 {[%emt 0:00:57]} cxd4 {[%emt 0:01:26]} 19. exd4 {[%emt 0:00:13]} f5 {[%emt 0:01:05]} 20. b4 {[%emt 0:01:50]} fxg4 {[%emt 0:01:02]} 21. fxg4 {[%emt 0:00:06]} Bg5 {[%emt 0:00:06]} 22. Nb3 {[%emt 0:00:48]} Be3+ {[%emt 0:01:51]} 23. Kg2 {[%emt 0:00:46] next Bf3 is good for White.} Be4+ {[%emt 0:01:22]} 24. Bf3 {[%emt 0:00:53]} Bxf3+ {[%emt 0:01:04]} (24... Rxf3 $1 $11 {keeps the balance.} 25. Rxf3 Rf8) 25. Rxf3 $16 {[%emt 0:00:02]} Rxf3 {[%emt 0:00:02]} 26. Kxf3 {[%emt 0:00:03]} Bg5 {[%emt 0:00:04]} 27. Re1 {[%emt 0:00:23]} Kf7 {[%emt 0:00:40]} 28. Ra1 {[%emt 0:01:14]} (28. h4 $16 Be7 29. g5) 28... Be7 {[%emt 0:00:45]} (28... Kg8 $1 $11) 29. Na5 {[%emt 0:00:13]} b5 {[%emt 0:00:48]} 30. Nc6 {[%emt 0:00:22]} Nb6 {[%emt 0:00:58]} (30... Bf6 $142) 31. Be1 {[%emt 0:01:16] White is more active.} ({White should try} 31. Ne5+ $16 Kg8 32. Nd3) 31... Bd6 {[%emt 0:00:36]} 32. Bg3 {[%emt 0:00:26]} (32. h4 $14) 32... Nc4 {[%emt 0:02:54]} (32... Be7 $11 {remains equal.}) 33. Bxd6 {[%emt 0:00:32]} (33. b3 {with more complications.} Nd2+ 34. Ke3 Ne4 35. Be5) 33... Nxd6 {[%emt 0:00:04][%mdl 4096] Endgame KRN-KRN} 34. Ne5+ {[%emt 0:00:06]} Ke7 {[%emt 0:00:32]} 35. Nd3 {[%emt 0:00:20]} Ne4 {[%emt 0:00:48]} 36. Ke3 {[%emt 0:00:23]} g5 {[%emt 0:01:02]} 37. h4 {[%emt 0:01:07]} (37. Nc5 $16) 37... h6 {[%emt 0:00:30]} (37... gxh4 $14 38. Rh1 h5) 38. hxg5 {[%emt 0:00:21]} hxg5 {[%emt 0:00:01]} 39. Rh1 {[%emt 0:00:06] Prevents Rh8.} (39. Kf3 $16) 39... Rf8 $11 {[%emt 0:00:08]} 40. Ne5 {[%emt 0:00:56] Hoping for Ng6+.} Rf2 $1 {[%emt 0:00:30]} 41. Rh7+ {[%emt 0:00:34]} Ke8 {[%emt 0:00:01]} 42. Ra7 {[%emt 0:00:35]} Rxb2 {[%emt 0:00:02]} 43. Rxa6 {[%emt 0:00:04]} Nxc3 {[%emt 0:00:23]} 44. Rxe6+ {[%emt 0:00:06]} Kf8 {[%emt 0:00:02]} 45. Rc6 {[%emt 0:00:31]} Nd1+ {[%emt 0:00:08]} 46. Kf3 {[%emt 0:00:10]} Rxb4 {[%emt 0:00:08]} 47. Rf6+ {[%emt 0:00:21]} Kg7 {[%emt 0:00:30]} 48. Rg6+ {[%emt 0:00:23]} Kh7 {[%emt 0:00:03]} 49. Rxg5 {[%emt 0:00:07]} Rxd4 {[%emt 0:00:02]} 50. Nd7 {[%emt 0:00:09] Intending Nf6+ and mate.} Kh6 $2 {[%mdl 8192] [#]} (50... Nc3 $11) 51. Rg8 $1 $18 {[%emt 0:00:09] Threatening mate with Nf6.} b4 {[%emt 0:00:44]} 52. Nf6 {[%emt 0:00:04][%csl Gg8][%cal Rg4g5]} Rd3+ {[%emt 0:00:15] [#]} 53. Kf4 $1 {[%emt 0:00:25][%csl Gf4,Gg8][%cal Rg4g5]} ({Less strong is} 53. Ke2 Re3+ 54. Kxd1 Re5 $16) 53... Rd4+ {[%emt 0:00:02]} 54. Ke5 {[%emt 0:00:04][%csl Gg8][%cal Rg4g5]} Re4+ 55. Nxe4 {[%emt 0:00:07]} dxe4 {[%emt 0:00:07]} 56. Kxe4 {[%emt 0:00:14] KR-KN} b3 {[%emt 0:00:01]} 57. Kf5 {[%emt 0:00:08]} b2 {[%emt 0:00:03]} 58. g5+ {[%emt 0:00:15]} Kh7 {[%emt 0:00:02]} 59. Rb8 {[%emt 0:00:03]} Ne3+ {[%emt 0:00:19]} 60. Kf6 $2 {[%emt 0:00:14]} (60. Kf4 {mates} Nc4 61. Kg4 Kg6 62. Kh4 Nd6 63. Rxb2 Nf5+ 64. Kg4 Ne7 65. Rb6+ Kg7 66. Kh5) 60... Nd5+ $2 {[%emt 0:00:02][%mdl 8192] This costs Black the game.} (60... Ng4+ $11 61. Kf5 Ne3+ 62. Kf4 Nc4) 61. Ke6 {[%emt 0:00:14] White mates.} Nf4+ {[%emt 0:00:06]} 62. Kf7 {[%emt 0:00:06]} Ng6 {[%emt 0:00:07]} 63. Rxb2 {[%emt 0:00:06]} Ne5+ {[%emt 0:00:01]} 64. Kf6 {[%emt 0:00:08]} Ng4+ {[%emt 0:00:05]} 65. Kf5 {[%emt 0:00:08]} Ne3+ {[%emt 0:00:01]} 66. Ke4 {[%emt 0:00:15]} Nc4 {[%emt 0:00:02]} 67. Rc2 {[%emt 0:00:09]} Nd6+ {[%emt 0:00:03]} 68. Ke5 {[%emt 0:00:05]} Nf7+ {[%emt 0:00:02]} 69. Kf6 {[%emt 0:00:04]} Nxg5 {[%emt 0:00:07]} 70. Kxg5 {[%emt 0:00:03] KR-K} Kg7 {[%emt 0:00:01]} 71. Rc7+ {[%emt 0:00:01]} Kf8 {[%emt 0:00:03]} 72. Kf6 {[%emt 0:00:04][%cal Rc7c8]} Ke8 {[%emt 0:00:01]} 73. Re7+ {[%emt 0:00:02]} Kf8 {[%emt 0:00:02]} 74. Ke6 {[%emt 0:00:06]} Kg8 {[%emt 0:00:01]} 75. Rf7 {[%emt 0:00:02]} Kh8 {[%emt 0:00:02]} 76. Kf6 {[%emt 0:00:03]} Kg8 {[%emt 0:00:01]} 77. Kg6 {[%emt 0:00:03]} Kh8 78. Rf8# {Weighted Error Value: White=0.28 (precise) /Black=0.55} 1-0

[Event "Czech Open-Rapid 2022"]
[Site "Pardubice"]
[Date "2022.07.20"]
[Round "1.21"]
[White "Babula, Matej"]
[Black "Krak, Tomas"]
[Result "0-1"]
[ECO "B57"]
[WhiteElo "1748"]
[BlackElo "2312"]
[Annotator "TA"]
[PlyCount "68"]
[EventDate "2022.07.20"]
[EventType "swiss"]
[EventCountry "CZE"]
[SourceTitle "playchess.com"]
[Source "ChessBase"]
[SourceQuality "1"]
[TimeControl "1200+10"]

{[%evp 13,68,26,45,-28,-21,-21,-23,-16,-16,-28,-29,-29,-25,-78,-78,-78,-81,-79,-75,-95,-15,-64,-61,-94,-95,-177,-181,-244,-222,-329,-315,-334,-326,-322,-317,-351,-334,-383,-356,-374,-364,-419,-399,-840,-846,-795,-762,-950,-891,-1837,-1766,-1579,-1479,-6311,-6123,-5373,-1538]} 1. e4 {[%emt 0:00:02]} c5 {[%emt 0:00:01]} 2. Nf3 {[%emt 0:00:03]} Nc6 {[%emt 0:00:07]} 3. d4 {[%emt 0:00:05]} cxd4 {[%emt 0:00:02]} 4. Nxd4 {[%emt 0:00:02]} Nf6 {[%emt 0:00:02]} 5. Nc3 {[%emt 0:00:03]} d6 {[%emt 0:00:01]} 6. Bc4 {[%emt 0:00:39]} Bd7 {[%emt 0:00:28]} 7. Be3 {[%emt 0:00:59]} Ng4 $1 {[%emt 0:02:09] 7...Ng4 scores better than 7...g6.} 8. Qd2 {[%emt 0:03:03] B57: Classical Sicilian: Sozin with 6...Qb6.} ({Much worse is} 8. Qf3 Nce5 9. Qe2 Nxe3 10. fxe3 Rc8 $15) ({White should play} 8. Nxc6 $14 bxc6 9. Bd2 (9. Qf3 Ne5 $11)) 8... Nxe3 $11 {[%emt 0:00:57]} 9. Qxe3 {[%emt 0:00:04]} Qb6 {[%emt 0:02:39]} 10. O-O-O {[%emt 0:01:05] Black has an edge.} Nxd4 {[%emt 0:00:02]} 11. Qxd4 {[%emt 0:00:29]} Qxd4 {[%emt 0:00:03]} 12. Rxd4 {[%emt 0:00:01][%cal Oe4e5]} g6 {[%emt 0:01:45]} 13. e5 {[%emt 0:03:41]} (13. Bb5 $11) 13... Bg7 $17 {[%emt 0:00:57]} 14. f4 {[%emt 0:00:30]} Bc6 {[%emt 0:06:26]} 15. Re1 {[%emt 0:04:21] [#]} dxe5 $146 {[%emt 0:01:26]} ({Predecessor:} 15... O-O 16. Nd5 Bxd5 17. Rxd5 dxe5 18. fxe5 Rac8 19. Bb3 e6 20. Rd7 Rb8 21. c4 Rfd8 22. Rd6 Bf8 23. Rxd8 Rxd8 24. Kc2 Bg7 25. Kc3 b6 26. Ba4 h5 {½-½ (26) Morris,C (1910)-Powell,A (2026) Telford 2005}) 16. fxe5 {[%emt 0:00:27]} O-O {[%emt 0:00:52]} (16... Bxg2 $17 {White should prevent ...0-0.} 17. Bb5+ Kf8) 17. g3 {[%emt 0:00:38]} (17. Bd5 $11) 17... Rad8 {[%emt 0:00:26]} 18. Rxd8 {[%emt 0:01:40] White is on the road to losing.} Rxd8 {[%emt 0:00:01]} 19. e6 {[%emt 0:00:38]} (19. Bb5 $17) 19... f5 $19 {[%emt 0:00:13]} 20. Rd1 {[%emt 0:00:30]} (20. a3 {was called for.}) 20... Rxd1+ {[%emt 0:00:39]} 21. Kxd1 {[%emt 0:00:03]} (21. Nxd1 {was the only chance.} Bh6+ 22. Kb1) 21... Bxc3 {[%emt 0:00:08]} 22. bxc3 {[%emt 0:00:02][%mdl 4096] Endgame KB-KB} Kg7 {[%emt 0:00:05]} 23. Ke2 {[%emt 0:01:38]} Kf6 {[%emt 0:00:02]} 24. Ke3 {[%emt 0:00:30]} Ke5 {[%emt 0:00:03]} 25. a3 {[%emt 0:00:58]} Bd5 {[%emt 0:00:42]} 26. Be2 {[%emt 0:00:20]} Bxe6 {[%emt 0:00:21]} 27. h4 {[%emt 0:00:30]} h6 {[%emt 0:00:32][%cal Bh7h6,Bh6g5][%mdl 32]} 28. a4 $2 {[%emt 0:00:54] [#]} (28. Bb5 g5 29. hxg5 hxg5 30. Bf1) 28... a5 {[%emt 0:00:17] Black is clearly winning.} 29. Bb5 {[%emt 0:00:17]} g5 {[%emt 0:00:11]} 30. hxg5 {[%emt 0:00:23]} hxg5 {[%emt 0:00:02]} 31. Kf3 {[%emt 0:00:20]} Bd5+ {[%emt 0:00:07]} 32. Ke3 {[%emt 0:00:01]} Bc6 {[%emt 0:00:09] [#] ( -> ...f4+)} 33. c4 {[%emt 0:00:26]} Bxb5 {[%emt 0:01:36]} 34. cxb5 {[%emt 0:00:02]} Kd5 {[%emt 0:00:06] Weighted Error Value: White=1.06/Black=0.07 (flawless)} (34... Kd6 $142 35. Kd4 e5+ 36. Kc4 g4) 0-1

[Event "Czech Open-Rapid 2022"]
[Site "Pardubice"]
[Date "2022.07.20"]
[Round "1.22"]
[White "Brejnik, Gustav"]
[Black "Sindler, Jaromir"]
[Result "1-0"]
[ECO "D74"]
[WhiteElo "2292"]
[BlackElo "1582"]
[Annotator "TA"]
[PlyCount "61"]
[EventDate "2022.07.20"]
[EventType "swiss"]
[EventCountry "CZE"]
[SourceTitle "playchess.com"]
[Source "ChessBase"]
[SourceQuality "1"]
[TimeControl "1200+10"]

{[%evp 13,61,18,27,-10,33,0,0,0,39,23,60,15,43,-63,-51,-55,-10,-15,-14,-18,72,73,214,27,20,0,166,174,352,234,244,244,234,203,281,293,512,502,466,398,404,397,407,400,791,781,791,777,770,766]} 1. d4 {[%emt 0:00:02]} Nf6 {[%emt 0:00:03]} 2. c4 {[%emt 0:00:01]} g6 {[%emt 0:00:03]} 3. g3 {[%emt 0:00:03]} Bg7 {[%emt 0:00:01]} 4. Bg2 {[%emt 0:00:01]} d5 {[%emt 0:00:16]} 5. cxd5 {[%emt 0:00:03]} Nxd5 {[%emt 0:00:02]} 6. Nf3 {[%emt 0:00:03]} O-O {[%emt 0:00:07]} 7. O-O {[%emt 0:00:02]} Nc6 {[%emt 0:00:20]} 8. h3 {[%emt 0:00:40] D74: Fianchetto Grünfeld: Main Line (5 Nf3 0-0 6 cxd5 Nxd5 7 0-0).} Bf5 {[%emt 0:00:48] [#]} (8... Nb6 $5 {[%cal Rc6d4]}) 9. Nc3 $146 {[%emt 0:01:16]} (9. g4 $5 {[%cal Rg4f5]} Bd7 10. Re1 $11) ({Predecessor:} 9. Re1 Be4 10. Nbd2 Bxf3 11. Nxf3 Nb6 12. Be3 Nc4 13. b3 Nxe3 14. fxe3 Rb8 15. Rc1 e5 {0-1 (45) Guerreiro,N (2086)-Duque,R (1430) Lisbon 2020}) 9... Nxc3 {[%emt 0:00:48]} 10. bxc3 {[%emt 0:00:02] The position is equal.} Qd7 {[%emt 0:00:42]} 11. Kh2 {[%emt 0:00:31]} Rfd8 {[%emt 0:00:33]} 12. Nh4 {[%emt 0:02:18] Hoping for e4.} Be6 {[%emt 0:02:04]} 13. e4 {[%emt 0:00:28]} ({White should try} 13. Qa4 $14) 13... Bc4 $15 {[%emt 0:00:23]} 14. Re1 {[%emt 0:00:02]} Ne5 {[%emt 0:00:08][%cal Oc7c5]} 15. Be3 {[%emt 0:02:51]} Nd3 {[%emt 0:02:08]} 16. Rg1 {[%emt 0:02:29]} Rab8 {[%emt 0:01:15] [#]} (16... e5 $11) 17. Qc2 $1 $16 {[%emt 0:01:57] Bf1 is the strong threat.} Qb5 {[%emt 0:00:20] [#]} (17... c5 $16 {was called for.}) 18. Rgb1 $2 {[%emt 0:01:19]} (18. Bf1 $1 $18) 18... Qa6 $1 $11 {[%emt 0:00:30]} 19. Nf3 {[%emt 0:01:06] Strongly threatening Bf1.} e5 $2 {[%emt 0:01:42]} (19... c5 $11 {and Black is okay.}) 20. Nd2 $36 {[%emt 0:02:03][%mdl 2048] White has strong initiative.} b6 $2 {[%emt 0:00:46]} (20... c5) 21. Nxc4 {[%emt 0:00:20]} Qxc4 {[%emt 0:00:03]} 22. Bf1 {[%emt 0:00:16][%cal Bg2f1,Bf1d3,Bd3c4][%mdl 32]} exd4 {[%emt 0:00:24]} 23. Bxd3 {[%emt 0:00:07]} Qc6 {[%emt 0:02:33]} 24. cxd4 {[%emt 0:00:28]} Qd6 {[%emt 0:00:10]} (24... Qxc2 25. Bxc2 Bxd4) 25. Rd1 {[%emt 0:01:01]} Bxd4 {[%emt 0:00:31]} 26. Bxd4 {[%emt 0:00:14]} Qxd4 {[%emt 0:00:01]} 27. Bc4 {[%emt 0:00:03]} Qc5 {[%emt 0:00:21]} 28. Kg2 {[%emt 0:00:13]} Rd4 {[%emt 0:00:13]} (28... c6 $142 29. a4 Kg7) 29. Rxd4 {[%emt 0:00:08] White is clearly winning.} Qxd4 {[%emt 0:00:01]} 30. Rd1 {[%emt 0:00:01]} Qf6 {[%emt 0:00:18]} 31. Rd7 {[%emt 0:00:06][%csl LRc7,LRf7] Weighted Error Value: White=0.34/Black=0.70} 1-0

[Event "Czech Open-Rapid 2022"]
[Site "Pardubice"]
[Date "2022.07.20"]
[Round "1.23"]
[White "Juchelka, Marek"]
[Black "Jurek, Josef"]
[Result "0-1"]
[ECO "B40"]
[WhiteElo "1803"]
[BlackElo "2200"]
[Annotator "TA"]
[PlyCount "130"]
[EventDate "2022.07.20"]
[EventType "swiss"]
[EventCountry "CZE"]
[SourceTitle "playchess.com"]
[Source "ChessBase"]
[SourceQuality "1"]
[TimeControl "1200+10"]

{[%evp 16,130,18,-8,17,0,0,-18,-6,-10,-14,-21,0,-50,-8,-50,-47,-42,-47,-50,-31,-47,-52,-66,-45,-44,-27,-21,-23,-19,-25,-22,-22,-23,-27,-26,-27,-25,-22,-21,-14,-14,-14,-10,-8,-8,-8,-8,-8,-16,-3,-8,-2,-14,-11,-11,-6,-16,-4,-12,-4,-63,-70,-131,-131,-131,-134,-174,-174,-174,-174,-174,-174,-174,-174,-174,-166,-166,-166,-174,-174,-174,-174,-185,-185,-195,0,-180,-180,-227,-227,-227,0,-227,-227,-373,-368,-356,-331,-331,-331,-331,-331,-338,-330,-398,-395,-368,-361,-445,-411,-29983,-29981,-29981,-29982,-29986,-29987]} 1. e4 {[%emt 0:00:03]} c5 {[%emt 0:00:05]} 2. Nf3 {[%emt 0:00:02]} e6 {[%emt 0:00:04]} 3. c3 {[%emt 0:00:21]} Nf6 {[%emt 0:00:15]} 4. e5 {[%emt 0:00:42]} Nd5 {[%emt 0:00:02]} 5. d4 {[%emt 0:00:01]} cxd4 {[%emt 0:00:03]} 6. cxd4 {[%emt 0:00:04]} b6 {[%emt 0:00:07]} 7. Nc3 {[%emt 0:00:21]} Nxc3 {[%emt 0:00:08]} 8. bxc3 {[%emt 0:00:02]} Qc7 {[%emt 0:00:13]} 9. Bb2 {[%emt 0:00:31]} d6 {[%emt 0:00:44] B22: Sicilian: 2 c3.} 10. Bd3 {[%emt 0:02:08][%cal Od4d5]} Nd7 {[%emt 0:00:17][%cal Rd6e5]} 11. exd6 {[%emt 0:00:17]} Bxd6 {[%emt 0:00:08] The position is equal.} 12. O-O {[%emt 0:00:18]} Bb7 {[%emt 0:01:17]} 13. h3 {[%emt 0:00:35]} O-O {[%emt 0:00:35]} 14. Rc1 {[%emt 0:01:39] [#]} (14. c4 $11) 14... e5 $146 {[%emt 0:00:50] aiming for ...e4.} ({Predecessor:} 14... Bf4 15. Rc2 Rac8 16. c4 Qb8 17. Qe2 Qa8 18. Rd1 Rfe8 19. Ne1 Nf6 20. g3 Bd6 {0-1 (63) Schmid,H (2183)-Oberst,T (2292) Wuerttemberg 2011}) 15. dxe5 {[%emt 0:01:44]} Nxe5 {[%emt 0:00:10]} 16. Nxe5 {[%emt 0:00:52]} Bxe5 {[%emt 0:00:04]} 17. Re1 {[%emt 0:00:09][%cal Od3h7]} Rfe8 {[%emt 0:00:57]} 18. Rc2 {[%emt 0:03:52]} Rad8 {[%emt 0:00:59][%cal Od8d3]} 19. Rce2 {[%emt 0:00:13] [#]} Qc6 $1 {[%emt 0:05:01][%csl Gb7][%cal Rc6g2] Black is more active.} 20. f3 Bg3 {[%emt 0:02:33]} 21. Rxe8+ {[%emt 0:03:22]} Rxe8 {[%emt 0:00:02]} 22. Rxe8+ {[%emt 0:00:02]} Qxe8 23. Qe2 {[%emt 0:00:12]} Qxe2 {[%emt 0:00:33]} (23... Qe5 {seems wilder.} 24. c4 Qxe2 25. Bxe2 g6) 24. Bxe2 $11 {[%emt 0:00:10][%mdl 4096] Endgame KBB-KBB} Be5 {[%emt 0:00:15]} 25. Kf2 {[%emt 0:00:25]} g6 {[%emt 0:01:20]} 26. Ke3 {[%emt 0:00:59]} g5 {[%emt 0:00:28]} 27. Bc4 {[%emt 0:01:59]} Kg7 {[%emt 0:00:13]} 28. Kd3 {[%emt 0:00:24]} h5 {[%emt 0:00:31]} 29. Bc1 {[%emt 0:00:19]} Kg6 {[%emt 0:00:27]} 30. Be3 {[%emt 0:01:16]} Bc6 {[%emt 0:00:27]} 31. Bd4 {[%emt 0:00:26]} Bd6 {[%emt 0:00:24]} 32. Ke3 {[%emt 0:00:31]} f5 {[%emt 0:01:16]} 33. Bd3 {[%emt 0:00:30]} Bg3 {[%emt 0:00:08]} 34. Ke2 {[%emt 0:00:29]} h4 {[%emt 0:00:38]} 35. Ke3 {[%emt 0:00:12]} Bd7 {[%emt 0:00:17]} 36. Ke2 {[%emt 0:00:16]} Kh5 {[%emt 0:00:11]} 37. Ke3 {[%emt 0:00:17]} Be6 {[%emt 0:01:36]} 38. Bb1 {[%emt 0:00:12]} (38. a4 $11) 38... Kg6 {[%emt 0:00:07]} 39. Ke2 {[%emt 0:00:09]} ({White should play} 39. a3 $15) 39... Bc4+ $17 {[%emt 0:00:08]} 40. Bd3 {[%emt 0:00:21]} Bxa2 {[%emt 0:00:04]} 41. c4 {[%emt 0:00:07]} Bd6 {[%emt 0:00:21]} 42. Kd2 {[%emt 0:00:16]} Bb3 {[%emt 0:00:09]} 43. Kc3 {[%emt 0:00:12]} Ba4 {[%emt 0:00:12]} 44. Bb1 {[%emt 0:00:08]} Bd7 {[%emt 0:00:13]} 45. Bd3 {[%emt 0:00:01]} Bc5 {[%emt 0:00:14] Threatens to win with ...Bxd4+.} 46. Be5 {[%emt 0:00:24]} Kf7 {[%emt 0:00:14]} 47. Kb3 {[%emt 0:00:03]} Ke6 {[%emt 0:00:11]} 48. Bg7 {[%emt 0:00:01]} Be7 {[%emt 0:00:14]} 49. Bd4 {[%emt 0:00:14]} Bf6 {[%emt 0:00:10]} 50. Be3 {[%emt 0:00:07]} Be7 {[%emt 0:00:08]} 51. Bd4 $1 {[%emt 0:00:02]} Bc6 {[%emt 0:00:11][%cal Og5g4]} 52. Bc3 {[%emt 0:00:21]} (52. Bf1 $142) 52... Bf6 $19 {[%emt 0:00:14] ...Bxc3 is the strong threat.} 53. Bd2 {[%emt 0:00:01]} Be7 {[%emt 0:00:08]} 54. Bc3 {[%emt 0:00:01]} g4 {[%emt 0:00:01]} 55. fxg4 {[%emt 0:00:17]} (55. Be2 {was the only defense.}) 55... fxg4 {[%emt 0:00:01]} 56. hxg4 {[%emt 0:00:01]} Bxg2 {[%emt 0:00:02] Hoping for ...h3.} 57. Bf5+ {[%emt 0:00:00]} Kf7 {[%emt 0:00:15]} 58. Be5 {[%emt 0:00:02]} Bg5 {[%emt 0:00:12]} 59. Kb4 {[%emt 0:00:03]} a6 {[%emt 0:00:18]} 60. c5 {[%emt 0:00:04]} Be7 {[%emt 0:00:07]} 61. Kc4 {[%emt 0:00:18]} bxc5 {[%emt 0:00:08]} 62. Bc8 {[%emt 0:00:04]} h3 {[%emt 0:00:04]} 63. Bxa6 {[%emt 0:00:08] [#]} (63. Bf5 $19) 63... Bf1+ {[%emt 0:00:01] Black mates.} 64. Kd5 {[%emt 0:00:09]} Bxa6 {[%emt 0:00:01]} 65. Ke4 Ke6 {[%emt 0:00:08] Weighted Error Value: White=0.28 (precise) /Black=0.13 (very precise)} 0-1

[Event "Czech Open-Rapid 2022"]
[Site "Pardubice"]
[Date "2022.07.20"]
[Round "1.24"]
[White "Klimakovs, Sergejs"]
[Black "Ricar, Jiri"]
[Result "1-0"]
[ECO "B00"]
[WhiteElo "2266"]
[BlackElo "1577"]
[Annotator "TA"]
[PlyCount "45"]
[EventDate "2022.07.20"]
[EventType "swiss"]
[EventCountry "CZE"]
[SourceTitle "playchess.com"]
[Source "ChessBase"]
[SourceQuality "1"]
[TimeControl "1200+10"]

{[%evp 9,45,133,165,164,177,177,308,255,269,246,250,195,208,120,122,86,98,87,84,41,99,100,174,129,171,143,258,222,278,271,269,245,388,203,1101,380,1533,1442]} 1. e4 {[%emt 0:00:05]} g5 {[%emt 0:00:02]} 2. d4 {[%emt 0:00:08]} Bg7 {[%emt 0:00:06]} 3. Nc3 {[%emt 0:00:45]} h6 {[%emt 0:00:09]} 4. Be3 {[%emt 0:00:17]} d6 {[%emt 0:00:31]} 5. Qd2 {[%emt 0:00:22]} c6 {[%emt 0:00:26]} 6. h4 {[%emt 0:00:08] [#] B00: Queen's Fianchetto Defence, Nimzowitsch Defence.} Qb6 $146 {[%emt 0:00:36]} ({Predecessor:} 6... g4 7. f4 Nf6 8. h5 d5 9. Bd3 dxe4 10. Nxe4 Nxe4 11. Bxe4 Nd7 12. Ne2 Nf6 {½-½ (28) Hortillosa,A (1923)-De Cat,B (2075) Portsmouth 1998}) 7. O-O-O {[%emt 0:00:04]} f6 {[%emt 0:00:28]} (7... g4 $142 8. Nge2 Nd7) 8. Be2 {[%emt 0:01:03] White has a decisive advantage.} ({But not} 8. hxg5 $6 hxg5 9. Rxh8 Bxh8 $18) 8... g4 {[%emt 0:00:36]} 9. f3 {[%emt 0:00:15]} h5 {[%emt 0:00:10]} 10. fxg4 {[%emt 0:00:07]} Bxg4 {[%emt 0:00:03]} 11. Nf3 {[%emt 0:00:07]} ({White should play} 11. Nh3 $18) 11... Nd7 $16 {[%emt 0:00:09]} 12. e5 {[%emt 0:00:31]} O-O-O {[%emt 0:01:08][%cal Rd6e5]} 13. exd6 {[%emt 0:00:35]} exd6 {[%emt 0:00:08]} 14. Ne4 {[%emt 0:00:01][%cal Bc3e4,Be4g5,Bg5f3][%mdl 32]} Nf8 {[%emt 0:00:56]} ({Better is} 14... Qc7 $14) 15. Kb1 {[%emt 0:00:18] White is more active.} f5 {[%emt 0:00:19]} (15... Qc7 $16 {is a better defense.}) 16. Neg5 {[%emt 0:00:17]} Qc7 {[%emt 0:00:09] Against Nf7} 17. Bc4 {[%emt 0:00:17][%cal Be2c4,Bc4d3,Bd3a6][%mdl 32]} d5 {[%emt 0:00:20]} (17... Nf6 $16 {keeps fighting.}) 18. Bf4 {[%emt 0:00:01]} Qd7 {[%emt 0:00:48]} 19. Bd3 {[%emt 0:00:06]} Bxf3 {[%emt 0:00:16]} 20. Nxf3 {[%emt 0:00:14] [#] aiming for Qa5.} Ne6 {[%emt 0:00:10]} (20... Ne7 $142 21. Ng5 Bxd4) 21. Bh2 {[%emt 0:00:08] A strong pair of Bishops.} (21. Ne5 $142 Bxe5 22. Bxe5) 21... Nxd4 $2 {[%emt 0:00:30]} (21... Nh6 22. Rde1 Rhe8) 22. Qa5 $2 {[%emt 0:00:02]} (22. Nxd4 Nh6 23. Qf4) 22... b6 $2 {[%emt 0:00:33]} (22... Nxf3 23. Bxf5 Nxh2 24. Bxd7+ Rxd7 25. Rxh2 b6) 23. Ba6+ {Weighted Error Value: White=0.62/Black=0.46} 1-0